[Event "Early-Titled-Tuesday-Blitz-May-28-2024"]
[Site "Chess.com"]
[Date "2024.05.28"]
[Round "9"]
[White "Chopper1905"]
[Black "Witik"]
[Result "0-1"]
[WhiteElo "2945"]
[BlackElo "2809"]
[TimeControl "180+1"]
[EndTime "9:46:53 PDT"]
[Termination "Witik won by checkmate"]

1. d4 {[%clk 0:02:54.9]} 1... Nf6 {[%clk 0:03:00]} 2. c4 {[%clk 0:02:54.7]} 2...
e6 {[%clk 0:02:55.8]} 3. Nc3 {[%clk 0:02:53.6]} 3... Bb4 {[%clk 0:02:55.7]} 4.
e3 {[%clk 0:02:53.7]} 4... O-O {[%clk 0:02:55.1]} 5. Bd3 {[%clk 0:02:53.6]} 5...
d5 {[%clk 0:02:53.1]} 6. Nf3 {[%clk 0:02:50.4]} 6... dxc4 {[%clk 0:02:45.7]} 7.
Bxc4 {[%clk 0:02:51.3]} 7... c5 {[%clk 0:02:46.2]} 8. O-O {[%clk 0:02:50.5]}
8... Nbd7 {[%clk 0:02:29.2]} 9. a3 {[%clk 0:02:41.6]} 9... Bxc3 {[%clk
0:02:27.9]} 10. bxc3 {[%clk 0:02:41.5]} 10... Qc7 {[%clk 0:02:27.7]} 11. Qe2
{[%clk 0:02:32.7]} 11... e5 {[%clk 0:02:17.5]} 12. a4 {[%clk 0:02:25.9]} 12...
b6 {[%clk 0:01:55.3]} 13. Ba3 {[%clk 0:02:20.8]} 13... Bb7 {[%clk 0:01:51.8]}
14. Rfd1 {[%clk 0:02:16.4]} 14... Rad8 {[%clk 0:01:24.6]} 15. Rac1 {[%clk
0:02:14.7]} 15... Ne4 {[%clk 0:01:19.2]} 16. Nh4 {[%clk 0:02:00]} 16... Ndf6
{[%clk 0:01:09.4]} 17. Bb3 {[%clk 0:01:47]} 17... Rfe8 {[%clk 0:00:57.7]} 18.
Qa2 {[%clk 0:01:05.3]} 18... exd4 {[%clk 0:00:20.5]} 19. cxd4 {[%clk 0:01:05.4]}
19... Ng4 {[%clk 0:00:21.1]} 20. Nf3 {[%clk 0:01:06.1]} 20... Nexf2 {[%clk
0:00:17.9]} 21. Ne5 {[%clk 0:00:47.4]} 21... Rxe5 {[%clk 0:00:13]} 22. dxe5
{[%clk 0:00:45.6]} 22... Nxd1 {[%clk 0:00:13.4]} 23. Bxd1 {[%clk 0:00:34.6]}
23... Qxe5 {[%clk 0:00:08]} 24. Bxg4 {[%clk 0:00:34]} 24... Qxe3+ {[%clk
0:00:07.9]} 25. Kh1 {[%clk 0:00:33.2]} 25... Rd2 {[%clk 0:00:05.5]} 26. Bh3
{[%clk 0:00:16.4]} 26... Rxa2 {[%clk 0:00:05.4]} 27. Rd1 {[%clk 0:00:17.1]}
27... h6 {[%clk 0:00:03.7]} 28. Bc1 {[%clk 0:00:17.1]} 28... Qe2 {[%clk
0:00:03.8]} 29. Rd8+ {[%clk 0:00:07.3]} 29... Kh7 {[%clk 0:00:04]} 30. Bb2
{[%clk 0:00:07.1]} 30... Qe1# {[%clk 0:00:02.9]} 0-1

[Event "Early-Titled-Tuesday-Blitz-May-28-2024"]
[Site "Chess.com"]
[Date "2024.05.28"]
[Round "9"]
[White "JaloliddinIlkhomi"]
[Black "Kostya0705"]
[Result "1-0"]
[WhiteElo "2793"]
[BlackElo "2593"]
[TimeControl "180+1"]
[EndTime "9:46:55 PDT"]
[Termination "JaloliddinIlkhomi won by resignation"]

1. Nf3 {[%clk 0:03:00.2]} 1... Nf6 {[%clk 0:02:56.3]} 2. d4 {[%clk 0:02:58.1]}
2... d5 {[%clk 0:02:55]} 3. Bf4 {[%clk 0:02:58.1]} 3... c5 {[%clk 0:02:52.9]} 4.
e3 {[%clk 0:02:58.1]} 4... Qb6 {[%clk 0:02:47.1]} 5. Nc3 {[%clk 0:02:56.4]} 5...
a6 {[%clk 0:02:44.8]} 6. a3 {[%clk 0:02:52.5]} 6... Nc6 {[%clk 0:02:42.1]} 7.
Rb1 {[%clk 0:02:47.6]} 7... Bg4 {[%clk 0:02:37.1]} 8. dxc5 {[%clk 0:02:43.7]}
8... Qxc5 {[%clk 0:02:34.4]} 9. Be2 {[%clk 0:02:44.1]} 9... e6 {[%clk
0:02:31.9]} 10. Ne5 {[%clk 0:02:40.8]} 10... Bxe2 {[%clk 0:02:30.4]} 11. Qxe2
{[%clk 0:02:41.5]} 11... Nxe5 {[%clk 0:02:29]} 12. Bxe5 {[%clk 0:02:42.4]} 12...
Be7 {[%clk 0:02:28.9]} 13. O-O {[%clk 0:02:41.3]} 13... O-O {[%clk 0:02:28.4]}
14. Rbd1 {[%clk 0:02:41.3]} 14... Nd7 {[%clk 0:02:17.6]} 15. Bd4 {[%clk
0:02:29.9]} 15... Qc6 {[%clk 0:02:17.1]} 16. e4 {[%clk 0:02:26.4]} 16... dxe4
{[%clk 0:02:15.6]} 17. Nxe4 {[%clk 0:02:27.3]} 17... e5 {[%clk 0:02:15]} 18. Bc3
{[%clk 0:02:22.8]} 18... f5 {[%clk 0:02:13.9]} 19. Ng3 {[%clk 0:02:19.9]} 19...
e4 {[%clk 0:02:12.4]} 20. Nh5 {[%clk 0:02:09]} 20... g6 {[%clk 0:02:09.8]} 21.
Nf4 {[%clk 0:01:58.5]} 21... Bf6 {[%clk 0:02:09.1]} 22. Bxf6 {[%clk 0:01:48.7]}
22... Nxf6 {[%clk 0:02:10]} 23. Rd4 {[%clk 0:01:42.6]} 23... Rac8 {[%clk
0:01:56.2]} 24. c3 {[%clk 0:01:36.9]} 24... Rfd8 {[%clk 0:01:38.7]} 25. Rfd1
{[%clk 0:01:32]} 25... Rxd4 {[%clk 0:01:36.9]} 26. Rxd4 {[%clk 0:01:32.4]} 26...
Kf7 {[%clk 0:01:28.9]} 27. h3 {[%clk 0:01:31.9]} 27... Ke7 {[%clk 0:01:28.7]}
28. Qd2 {[%clk 0:01:29.8]} 28... Qc7 {[%clk 0:01:27.4]} 29. Nd5+ {[%clk
0:01:06]} 29... Nxd5 {[%clk 0:01:23.6]} 30. Rxd5 {[%clk 0:01:06.9]} 30... Rd8
{[%clk 0:01:21.9]} 31. Qd4 {[%clk 0:00:32.7]} 31... Rxd5 {[%clk 0:01:20.9]} 32.
Qxd5 {[%clk 0:00:33.2]} 32... Qd7 {[%clk 0:01:16.6]} 33. Qg8 {[%clk 0:00:32.9]}
33... Kf6 {[%clk 0:01:14.2]} 34. Qf8+ {[%clk 0:00:31.3]} 34... Ke6 {[%clk
0:01:13.7]} 35. Qg8+ {[%clk 0:00:30]} 35... Ke5 {[%clk 0:01:04.4]} 36. Qh8+
{[%clk 0:00:28.2]} 36... Kf4 {[%clk 0:01:02.6]} 37. Qf6 {[%clk 0:00:22.7]} 37...
g5 {[%clk 0:00:57.5]} 38. h4 {[%clk 0:00:18.8]} 38... gxh4 {[%clk 0:00:47.6]}
39. Kh2 {[%clk 0:00:19.1]} 39... e3 {[%clk 0:00:38.2]} 40. Qxh4+ {[%clk
0:00:17.7]} 40... Ke5 {[%clk 0:00:37.9]} 41. fxe3 {[%clk 0:00:17.2]} 41... Qd2
{[%clk 0:00:37.6]} 42. Qd4+ {[%clk 0:00:12.6]} 1-0

[Event "Early-Titled-Tuesday-Blitz-May-28-2024"]
[Site "Chess.com"]
[Date "2024.05.28"]
[Round "9"]
[White "RobertoJBM"]
[Black "ValeriyGrinev"]
[Result "1-0"]
[WhiteElo "2782"]
[BlackElo "2577"]
[TimeControl "180+1"]
[EndTime "9:47:01 PDT"]
[Termination "RobertoJBM won by resignation"]

1. d4 {[%clk 0:03:00.9]} 1... d5 {[%clk 0:02:59.6]} 2. Nf3 {[%clk 0:03:00.3]}
2... Nf6 {[%clk 0:02:59]} 3. e3 {[%clk 0:03:00]} 3... e6 {[%clk 0:02:58]} 4. Bd3
{[%clk 0:02:59.4]} 4... Be7 {[%clk 0:02:53.8]} 5. O-O {[%clk 0:02:58.7]} 5...
O-O {[%clk 0:02:50.5]} 6. Nbd2 {[%clk 0:02:56.7]} 6... b6 {[%clk 0:02:49.5]} 7.
Qe2 {[%clk 0:02:56.3]} 7... c5 {[%clk 0:02:45.6]} 8. c3 {[%clk 0:02:55.7]} 8...
a5 {[%clk 0:02:38.6]} 9. e4 {[%clk 0:02:49.3]} 9... dxe4 {[%clk 0:02:34.2]} 10.
Nxe4 {[%clk 0:02:48.9]} 10... Bb7 {[%clk 0:02:29.5]} 11. Rd1 {[%clk 0:02:47.3]}
11... Qc7 {[%clk 0:02:23.4]} 12. Bg5 {[%clk 0:02:43.5]} 12... Nbd7 {[%clk
0:02:19]} 13. dxc5 {[%clk 0:02:38.1]} 13... Nxc5 {[%clk 0:02:05.9]} 14. Nxc5
{[%clk 0:02:31.7]} 14... Qxc5 {[%clk 0:02:01.3]} 15. Bxf6 {[%clk 0:02:29.3]}
15... Bxf6 {[%clk 0:01:58]} 16. Be4 {[%clk 0:02:29.5]} 16... Bxe4 {[%clk
0:01:53.9]} 17. Qxe4 {[%clk 0:02:30.4]} 17... Rad8 {[%clk 0:01:53.4]} 18. a4
{[%clk 0:02:24.4]} 18... g6 {[%clk 0:01:49.9]} 19. h4 {[%clk 0:02:22.9]} 19...
h5 {[%clk 0:01:48.5]} 20. g3 {[%clk 0:02:22.3]} 20... Kg7 {[%clk 0:01:44.5]} 21.
Kg2 {[%clk 0:02:19.4]} 21... b5 {[%clk 0:01:30.7]} 22. axb5 {[%clk 0:02:17.4]}
22... Qxb5 {[%clk 0:01:31.6]} 23. Rxd8 {[%clk 0:01:59.5]} 23... Rxd8 {[%clk
0:01:32.5]} 24. Qc2 {[%clk 0:01:57.6]} 24... Rb8 {[%clk 0:01:23.6]} 25. Ra2
{[%clk 0:01:52.4]} 25... Rb7 {[%clk 0:01:11.8]} 26. Qe4 {[%clk 0:01:31]} 26...
Rd7 {[%clk 0:01:05.2]} 27. Qa4 {[%clk 0:01:17.9]} 27... Qxa4 {[%clk 0:00:44.3]}
28. Rxa4 {[%clk 0:01:18.8]} 28... Rb7 {[%clk 0:00:44.6]} 29. Ra2 {[%clk
0:01:10.8]} 29... a4 {[%clk 0:00:44.9]} 30. Nd2 {[%clk 0:00:56.1]} 30... a3
{[%clk 0:00:43.9]} 31. bxa3 {[%clk 0:00:57]} 31... Bxc3 {[%clk 0:00:40.7]} 32.
Nc4 {[%clk 0:00:55.1]} 32... Rc7 {[%clk 0:00:36.6]} 33. Nd6 {[%clk 0:00:51.5]}
33... Rd7 {[%clk 0:00:23.4]} 34. Nb5 {[%clk 0:00:48.5]} 34... Ba5 {[%clk
0:00:23.1]} 35. Rc2 {[%clk 0:00:47.1]} 35... e5 {[%clk 0:00:18]} 36. Kf3 {[%clk
0:00:42.7]} 36... f5 {[%clk 0:00:17.8]} 37. Ke2 {[%clk 0:00:41.3]} 37... e4
{[%clk 0:00:17.2]} 38. a4 {[%clk 0:00:28]} 38... Kf7 {[%clk 0:00:16.1]} 39. Na3
{[%clk 0:00:22.3]} 39... Rd3 {[%clk 0:00:11.3]} 40. Nc4 {[%clk 0:00:22.4]} 40...
Bb4 {[%clk 0:00:09]} 41. Ne5+ {[%clk 0:00:21.9]} 1-0

[Event "Early-Titled-Tuesday-Blitz-May-28-2024"]
[Site "Chess.com"]
[Date "2024.05.28"]
[Round "9"]
[White "betta2004"]
[Black "AradNazari"]
[Result "0-1"]
[WhiteElo "2598"]
[BlackElo "2794"]
[TimeControl "180+1"]
[EndTime "9:47:03 PDT"]
[Termination "AradNazari won by resignation"]

1. Nf3 {[%clk 0:02:54.8]} 1... c5 {[%clk 0:02:55.5]} 2. b3 {[%clk 0:02:53.2]}
2... b6 {[%clk 0:02:52.7]} 3. Bb2 {[%clk 0:02:51.4]} 3... Bb7 {[%clk 0:02:53]}
4. g3 {[%clk 0:02:48]} 4... e6 {[%clk 0:02:51.8]} 5. Bg2 {[%clk 0:02:47.2]} 5...
Nf6 {[%clk 0:02:52]} 6. O-O {[%clk 0:02:46.4]} 6... Be7 {[%clk 0:02:52.6]} 7. e3
{[%clk 0:02:45.4]} 7... O-O {[%clk 0:02:51.5]} 8. d4 {[%clk 0:02:45.3]} 8... d5
{[%clk 0:02:45.9]} 9. Ne5 {[%clk 0:02:43.7]} 9... Nbd7 {[%clk 0:02:45.6]} 10. f4
{[%clk 0:02:42.9]} 10... Ne4 {[%clk 0:02:40]} 11. Nd2 {[%clk 0:02:36.4]} 11...
cxd4 {[%clk 0:02:32.7]} 12. exd4 {[%clk 0:02:33.5]} 12... f6 {[%clk 0:02:32.7]}
13. Nd3 {[%clk 0:02:24.6]} 13... f5 {[%clk 0:02:30.1]} 14. Nf3 {[%clk
0:02:22.7]} 14... Rc8 {[%clk 0:02:28.7]} 15. Nfe5 {[%clk 0:02:21.3]} 15... Nxe5
{[%clk 0:02:27.9]} 16. Nxe5 {[%clk 0:02:22]} 16... Nc3 {[%clk 0:02:04]} 17. Qe1
{[%clk 0:02:18.5]} 17... Qc7 {[%clk 0:01:58.5]} 18. Nd3 {[%clk 0:01:40.9]} 18...
Ne4 {[%clk 0:01:48.1]} 19. Rc1 {[%clk 0:01:40.2]} 19... b5 {[%clk 0:01:46.2]}
20. Ne5 {[%clk 0:01:37.1]} 20... b4 {[%clk 0:01:40]} 21. Qe2 {[%clk 0:01:33.8]}
21... Qb6 {[%clk 0:01:35.6]} 22. Bxe4 {[%clk 0:01:33]} 22... fxe4 {[%clk
0:01:35.5]} 23. Qg4 {[%clk 0:01:30.3]} 23... Rc7 {[%clk 0:01:24]} 24. c3 {[%clk
0:01:16.5]} 24... bxc3 {[%clk 0:01:16.6]} 25. Rxc3 {[%clk 0:01:15.6]} 25... Rxc3
{[%clk 0:00:57.2]} 26. Bxc3 {[%clk 0:01:16.5]} 26... Rc8 {[%clk 0:00:50]} 27.
Qh5 {[%clk 0:01:04.2]} 27... Bf6 {[%clk 0:00:39.9]} 28. Qf7+ {[%clk 0:01:04.1]}
28... Kh8 {[%clk 0:00:40.2]} 29. Kg2 {[%clk 0:00:57.3]} 29... Qc7 {[%clk
0:00:29.5]} 30. Nd7 {[%clk 0:00:18.5]} 30... Ba6 {[%clk 0:00:18.7]} 31. Rc1
{[%clk 0:00:11.2]} 31... Bb5 {[%clk 0:00:19.1]} 32. Qxe6 {[%clk 0:00:04.7]}
32... Qxd7 {[%clk 0:00:18.2]} 33. f5 {[%clk 0:00:03.9]} 33... Qxe6 {[%clk
0:00:15.2]} 34. fxe6 {[%clk 0:00:04.8]} 34... Bxd4 {[%clk 0:00:13.9]} 35. e7
{[%clk 0:00:05.3]} 35... Rxc3 {[%clk 0:00:13.5]} 36. a4 {[%clk 0:00:03.2]} 36...
Rxc1 {[%clk 0:00:12.9]} 0-1

[Event "Early-Titled-Tuesday-Blitz-May-28-2024"]
[Site "Chess.com"]
[Date "2024.05.28"]
[Round "9"]
[White "dianamirza"]
[Black "PowerThinking2650"]
[Result "0-1"]
[WhiteElo "2000"]
[BlackElo "2508"]
[TimeControl "180+1"]
[EndTime "9:47:06 PDT"]
[Termination "PowerThinking2650 won on time"]

1. d4 {[%clk 0:02:50.8]} 1... Nf6 {[%clk 0:02:59.9]} 2. c4 {[%clk 0:02:49.5]}
2... g6 {[%clk 0:03:00.1]} 3. Nc3 {[%clk 0:02:50]} 3... Bg7 {[%clk 0:03:00.2]}
4. e4 {[%clk 0:02:50.4]} 4... d6 {[%clk 0:03:00.8]} 5. f3 {[%clk 0:02:50.7]}
5... O-O {[%clk 0:03:01.4]} 6. Be3 {[%clk 0:02:51.1]} 6... Nbd7 {[%clk
0:02:57.7]} 7. Qd2 {[%clk 0:02:51.5]} 7... c5 {[%clk 0:02:57.8]} 8. d5 {[%clk
0:02:51.6]} 8... Ne5 {[%clk 0:02:56.3]} 9. h4 {[%clk 0:02:47.4]} 9... Qb6 {[%clk
0:02:54.7]} 10. O-O-O {[%clk 0:02:46.4]} 10... h5 {[%clk 0:02:28]} 11. Be2
{[%clk 0:02:26.7]} 11... e6 {[%clk 0:02:22.2]} 12. dxe6 {[%clk 0:02:01.5]} 12...
Bxe6 {[%clk 0:02:23.1]} 13. Qxd6 {[%clk 0:02:01.5]} 13... Qxd6 {[%clk
0:02:06.8]} 14. Rxd6 {[%clk 0:02:02.4]} 14... Bxc4 {[%clk 0:02:06.8]} 15. Bxc5
{[%clk 0:01:50.2]} 15... Rfc8 {[%clk 0:01:55.5]} 16. Bd4 {[%clk 0:01:30.2]}
16... Ne8 {[%clk 0:01:52.2]} 17. Bxe5 {[%clk 0:01:17.1]} 17... Bxe5 {[%clk
0:01:48.1]} 18. Rd7 {[%clk 0:01:16.1]} 18... Bxa2 {[%clk 0:01:32.6]} 19. Kd2
{[%clk 0:01:04.7]} 19... Rd8 {[%clk 0:01:12.3]} 20. Rxd8 {[%clk 0:01:02.6]}
20... Rxd8+ {[%clk 0:01:13.2]} 21. Kc2 {[%clk 0:01:01.6]} 21... Be6 {[%clk
0:01:08.6]} 22. Bd3 {[%clk 0:00:41.9]} 22... Nd6 {[%clk 0:01:06]} 23. Nge2
{[%clk 0:00:41.8]} 23... Nc4 {[%clk 0:01:05.6]} 24. f4 {[%clk 0:00:26]} 24...
Bxc3 {[%clk 0:00:53.2]} 25. Kxc3 {[%clk 0:00:20.6]} 25... Nxb2 {[%clk
0:00:52.9]} 26. Kxb2 {[%clk 0:00:13.8]} 26... Rxd3 {[%clk 0:00:52.3]} 27. Kc2
{[%clk 0:00:04.7]} 27... Rd7 {[%clk 0:00:37.3]} 28. Ra1 {[%clk 0:00:04.3]} 28...
a6 {[%clk 0:00:37.2]} 29. Nc3 {[%clk 0:00:04.6]} 29... Rc7 {[%clk 0:00:34.1]}
30. Kd3 {[%clk 0:00:02.4]} 30... Bc4+ {[%clk 0:00:33.8]} 31. Kd4 {[%clk
0:00:02.3]} 31... Kg7 {[%clk 0:00:33.9]} 32. Nd5 {[%clk 0:00:02.5]} 32... Bxd5
{[%clk 0:00:32.3]} 33. Kxd5 {[%clk 0:00:03.4]} 33... Rc8 {[%clk 0:00:22.4]} 34.
Rb1 {[%clk 0:00:03.4]} 34... b5 {[%clk 0:00:20]} 35. e5 {[%clk 0:00:04.1]} 35...
Rb8 {[%clk 0:00:18.4]} 36. Kd6 {[%clk 0:00:04.5]} 36... b4 {[%clk 0:00:17.7]}
37. Kc7 {[%clk 0:00:04.9]} 37... Rb5 {[%clk 0:00:17.2]} 38. Kc6 {[%clk
0:00:05.3]} 38... b3 {[%clk 0:00:17.4]} 39. g4 {[%clk 0:00:03.8]} 39... hxg4
{[%clk 0:00:17.1]} 40. Rg1 {[%clk 0:00:03.6]} 40... b2 {[%clk 0:00:16.9]} 0-1

[Event "Early-Titled-Tuesday-Blitz-May-28-2024"]
[Site "Chess.com"]
[Date "2024.05.28"]
[Round "9"]
[White "AlbusSevresPotter"]
[Black "GoltsevDmitry2000"]
[Result "0-1"]
[WhiteElo "2563"]
[BlackElo "2754"]
[TimeControl "180+1"]
[EndTime "9:47:07 PDT"]
[Termination "GoltsevDmitry2000 won by resignation"]

1. e4 {[%clk 0:03:00.9]} 1... e6 {[%clk 0:02:59.6]} 2. d4 {[%clk 0:03:00.4]}
2... d5 {[%clk 0:03:00.2]} 3. Nc3 {[%clk 0:03:00.8]} 3... c5 {[%clk 0:02:59.9]}
4. exd5 {[%clk 0:02:56.3]} 4... exd5 {[%clk 0:03:00.8]} 5. dxc5 {[%clk
0:02:56.5]} 5... Nf6 {[%clk 0:03:00.8]} 6. Be3 {[%clk 0:02:44.5]} 6... Nc6
{[%clk 0:02:59.9]} 7. Nf3 {[%clk 0:02:43.9]} 7... Bg4 {[%clk 0:02:59.2]} 8. Bb5
{[%clk 0:02:43.5]} 8... Be7 {[%clk 0:02:57.9]} 9. h3 {[%clk 0:02:42.5]} 9... Bh5
{[%clk 0:02:57.6]} 10. g4 {[%clk 0:02:37.5]} 10... Bg6 {[%clk 0:02:57.1]} 11.
Ne5 {[%clk 0:02:32.6]} 11... Rc8 {[%clk 0:02:56.9]} 12. Bxc6+ {[%clk 0:02:23.4]}
12... bxc6 {[%clk 0:02:56.4]} 13. O-O {[%clk 0:02:10]} 13... Nd7 {[%clk
0:02:28.6]} 14. Nxd7 {[%clk 0:01:47.4]} 14... Qxd7 {[%clk 0:02:28.3]} 15. Re1
{[%clk 0:01:40.5]} 15... O-O {[%clk 0:02:09.5]} 16. Bd4 {[%clk 0:01:34.1]} 16...
Rce8 {[%clk 0:01:41.1]} 17. Qd2 {[%clk 0:00:48.3]} 17... f5 {[%clk 0:01:34.1]}
18. f3 {[%clk 0:00:32.9]} 18... fxg4 {[%clk 0:01:29.6]} 19. fxg4 {[%clk
0:00:33.8]} 19... Bh4 {[%clk 0:01:25.6]} 20. Rxe8 {[%clk 0:00:31]} 20... Rxe8
{[%clk 0:01:24.4]} 21. Bf2 {[%clk 0:00:22.3]} 21... Bf6 {[%clk 0:01:17]} 22. Bd4
{[%clk 0:00:20.5]} 22... Bd8 {[%clk 0:00:59.8]} 23. Re1 {[%clk 0:00:19.6]} 23...
Rxe1+ {[%clk 0:00:58]} 24. Qxe1 {[%clk 0:00:20.5]} 24... Bxc2 {[%clk 0:00:56.6]}
25. Qf2 {[%clk 0:00:18.1]} 25... Bg6 {[%clk 0:00:55.3]} 26. b4 {[%clk
0:00:14.8]} 26... Bc7 {[%clk 0:00:51]} 27. a4 {[%clk 0:00:13.7]} 27... a6 {[%clk
0:00:44.3]} 28. Qe3 {[%clk 0:00:11.1]} 28... h5 {[%clk 0:00:38.8]} 29. Qg5
{[%clk 0:00:10.8]} 29... Qe6 {[%clk 0:00:29.9]} 30. gxh5 {[%clk 0:00:04.8]}
30... Qe1+ {[%clk 0:00:29.9]} 31. Kg2 {[%clk 0:00:04.1]} 31... Be4+ {[%clk
0:00:27]} 32. Nxe4 {[%clk 0:00:02.4]} 32... Qxe4+ {[%clk 0:00:27.9]} 33. Kf1
{[%clk 0:00:01.5]} 33... Qxd4 {[%clk 0:00:27.7]} 34. Qg6 {[%clk 0:00:01]} 34...
Qf6+ {[%clk 0:00:24.8]} 35. Qxf6 {[%clk 0:00:01.6]} 35... gxf6 {[%clk
0:00:25.7]} 36. Ke2 {[%clk 0:00:02.3]} 36... Kh7 {[%clk 0:00:25.7]} 37. Kd3
{[%clk 0:00:02.1]} 37... Be5 {[%clk 0:00:25.2]} 38. b5 {[%clk 0:00:01.8]} 38...
axb5 {[%clk 0:00:25.1]} 39. axb5 {[%clk 0:00:02.4]} 39... cxb5 {[%clk 0:00:26]}
40. c6 {[%clk 0:00:03.3]} 40... Kh6 {[%clk 0:00:26.2]} 41. c7 {[%clk 0:00:04]}
41... Bxc7 {[%clk 0:00:26.3]} 42. Kd4 {[%clk 0:00:04.9]} 42... b4 {[%clk
0:00:26]} 43. Kxd5 {[%clk 0:00:05.5]} 43... b3 {[%clk 0:00:26.6]} 0-1

[Event "Early-Titled-Tuesday-Blitz-May-28-2024"]
[Site "Chess.com"]
[Date "2024.05.28"]
[Round "9"]
[White "lamomiajunior"]
[Black "Fh2411"]
[Result "1-0"]
[WhiteElo "2731"]
[BlackElo "2556"]
[TimeControl "180+1"]
[EndTime "9:47:08 PDT"]
[Termination "lamomiajunior won by resignation"]

1. d4 {[%clk 0:03:00.9]} 1... d5 {[%clk 0:02:59.6]} 2. Nc3 {[%clk 0:03:01.3]}
2... c6 {[%clk 0:02:53.8]} 3. Bf4 {[%clk 0:03:01.2]} 3... Nf6 {[%clk 0:02:53.6]}
4. e3 {[%clk 0:03:01.6]} 4... Bf5 {[%clk 0:02:52.3]} 5. f3 {[%clk 0:03:01.7]}
5... h6 {[%clk 0:02:49.1]} 6. g4 {[%clk 0:03:00.3]} 6... Bh7 {[%clk 0:02:48.7]}
7. h4 {[%clk 0:03:00.9]} 7... e6 {[%clk 0:02:39.3]} 8. Qd2 {[%clk 0:03:01.1]}
8... Nbd7 {[%clk 0:02:29.9]} 9. Nge2 {[%clk 0:03:00.4]} 9... Nb6 {[%clk
0:02:24.8]} 10. Ng3 {[%clk 0:02:57.9]} 10... Bd6 {[%clk 0:02:02.1]} 11. O-O-O
{[%clk 0:02:44.2]} 11... Qc7 {[%clk 0:01:45.4]} 12. g5 {[%clk 0:02:39.2]} 12...
Bxf4 {[%clk 0:01:45]} 13. exf4 {[%clk 0:02:39.1]} 13... Nfd7 {[%clk 0:01:45.5]}
14. b3 {[%clk 0:02:20.5]} 14... O-O-O {[%clk 0:01:43.9]} 15. a4 {[%clk
0:02:19.2]} 15... Kb8 {[%clk 0:01:40.3]} 16. Kb2 {[%clk 0:02:13.4]} 16... Nc8
{[%clk 0:01:40.5]} 17. Bh3 {[%clk 0:02:07]} 17... Nd6 {[%clk 0:01:40.3]} 18.
Rhe1 {[%clk 0:01:57]} 18... hxg5 {[%clk 0:01:21]} 19. fxg5 {[%clk 0:01:55.8]}
19... Nc4+ {[%clk 0:01:17]} 20. bxc4 {[%clk 0:01:54.4]} 20... Qxg3 {[%clk
0:01:17]} 21. Bg4 {[%clk 0:01:49.8]} 21... dxc4 {[%clk 0:01:13.6]} 22. a5 {[%clk
0:01:45.1]} 22... Bg6 {[%clk 0:01:03.5]} 23. Na4 {[%clk 0:01:40.1]} 23... Rxh4
{[%clk 0:01:01.1]} 24. Qb4 {[%clk 0:01:37.5]} 24... Rh2 {[%clk 0:00:56.2]} 25.
Rc1 {[%clk 0:01:28.5]} 25... Qf2 {[%clk 0:00:45.1]} 26. Ka3 {[%clk 0:01:04.6]}
26... Bxc2 {[%clk 0:00:35.5]} 27. Nc3 {[%clk 0:00:38]} 27... Bb3 {[%clk
0:00:30.4]} 28. Qd6+ {[%clk 0:00:28.6]} 28... Kc8 {[%clk 0:00:28.4]} 29. Re2
{[%clk 0:00:29.2]} 29... Qxe2 {[%clk 0:00:24]} 30. Nxe2 {[%clk 0:00:30.1]} 30...
Rxe2 {[%clk 0:00:24.3]} 31. Qe7 {[%clk 0:00:16.7]} 31... Nb8 {[%clk 0:00:20.4]}
32. Qxf7 {[%clk 0:00:10.1]} 32... Na6 {[%clk 0:00:11.9]} 33. Bxe6+ {[%clk
0:00:10]} 33... Kb8 {[%clk 0:00:12.6]} 34. Bxc4 {[%clk 0:00:07.5]} 34... Bxc4
{[%clk 0:00:12.2]} 35. Qxc4 {[%clk 0:00:06.8]} 35... Rf8 {[%clk 0:00:09.7]} 36.
Qxe2 {[%clk 0:00:06.3]} 1-0

[Event "Early-Titled-Tuesday-Blitz-May-28-2024"]
[Site "Chess.com"]
[Date "2024.05.28"]
[Round "9"]
[White "TitarovVasiliYouTube"]
[Black "MdChess1734"]
[Result "1-0"]
[WhiteElo "2575"]
[BlackElo "2411"]
[TimeControl "180+1"]
[EndTime "9:47:09 PDT"]
[Termination "TitarovVasiliYouTube won on time"]

1. g3 {[%clk 0:02:54.4]} 1... d5 {[%clk 0:02:54.8]} 2. Bg2 {[%clk 0:02:55.3]}
2... Nf6 {[%clk 0:02:54.8]} 3. Nf3 {[%clk 0:02:55.5]} 3... Bf5 {[%clk
0:02:54.9]} 4. O-O {[%clk 0:02:55.8]} 4... e6 {[%clk 0:02:55.2]} 5. d3 {[%clk
0:02:55.8]} 5... h6 {[%clk 0:02:54.6]} 6. Nbd2 {[%clk 0:02:56.1]} 6... Be7
{[%clk 0:02:54.8]} 7. c4 {[%clk 0:02:56.4]} 7... O-O {[%clk 0:02:52.7]} 8. Qb3
{[%clk 0:02:56.4]} 8... Na6 {[%clk 0:02:11.8]} 9. d4 {[%clk 0:02:09.1]} 9... Nb4
{[%clk 0:01:56.3]} 10. a3 {[%clk 0:02:04.4]} 10... Nc6 {[%clk 0:01:31.4]} 11.
Qxb7 {[%clk 0:01:54.5]} 11... Na5 {[%clk 0:01:29.3]} 12. Qa6 {[%clk 0:01:51.7]}
12... Nxc4 {[%clk 0:01:17.5]} 13. Nxc4 {[%clk 0:01:51.4]} 13... dxc4 {[%clk
0:01:18]} 14. Qxc4 {[%clk 0:01:49]} 14... Be4 {[%clk 0:01:18.3]} 15. Bf4 {[%clk
0:01:43.9]} 15... Nd5 {[%clk 0:01:18.3]} 16. Bd2 {[%clk 0:01:40.1]} 16... Rb8
{[%clk 0:01:15.8]} 17. b4 {[%clk 0:01:39.8]} 17... Bf6 {[%clk 0:01:14]} 18. Rac1
{[%clk 0:01:36.5]} 18... Rc8 {[%clk 0:01:09.3]} 19. Rfd1 {[%clk 0:01:31.6]}
19... Nb6 {[%clk 0:00:58.9]} 20. Qa6 {[%clk 0:01:27.7]} 20... Qd5 {[%clk
0:00:46.2]} 21. Bf4 {[%clk 0:01:18]} 21... g5 {[%clk 0:00:41.6]} 22. Be5 {[%clk
0:01:10.8]} 22... Be7 {[%clk 0:00:26.9]} 23. Bxc7 {[%clk 0:00:58.7]} 23... g4
{[%clk 0:00:24.3]} 24. Ne1 {[%clk 0:00:58.8]} 24... Bg5 {[%clk 0:00:16.6]} 25.
e3 {[%clk 0:00:40.9]} 25... Bxg2 {[%clk 0:00:04.2]} 26. Nxg2 {[%clk 0:00:41.8]}
26... Qf3 {[%clk 0:00:03.3]} 27. Bxb6 {[%clk 0:00:28.5]} 27... axb6 {[%clk
0:00:03.9]} 28. Qxb6 {[%clk 0:00:29.4]} 28... Rc2 {[%clk 0:00:03.5]} 29. Rf1
{[%clk 0:00:25.4]} 29... Rfc8 {[%clk 0:00:02.8]} 30. Rxc2 {[%clk 0:00:23.1]}
30... Rxc2 {[%clk 0:00:03.5]} 31. Qb8+ {[%clk 0:00:19.9]} 31... Kg7 {[%clk
0:00:03.2]} 32. Qe5+ {[%clk 0:00:19.5]} 32... Kg8 {[%clk 0:00:03.6]} 33. b5
{[%clk 0:00:19.2]} 33... Qe2 {[%clk 0:00:01.1]} 34. Nf4 {[%clk 0:00:16.6]} 1-0